bitfinex-derivatives/quotes_BTCF0:USTF0_20251210
["timestamp","ask_amount","ask_price","bid_price","bid_amount"]
[1765390882103,0.58154891,92082.0,92076.0,0.0108608]
[1765390882408,0.58154891,92082.0,92081.0,0.15776]
[1765390882409,0.3628,92082.0,92081.0,0.15776]
[1765390882597,0.42288,92082.0,92081.0,0.15776]
[1765390882798,0.48692,92082.0,92081.0,0.15776]
[1765390883405,0.48792,92082.0,92081.0,0.15776]
[1765390883706,0.3618,92082.0,92081.0,0.1686202]
[1765390884495,0.001,92082.0,92081.0,0.1686202]
[1765390884700,0.3608,92090.0,92089.0,0.1327092]
[1765390886109,0.3628,92090.0,92089.0,0.1327092]
[1765390886311,0.3736591,92090.0,92089.0,0.1327092]
[1765390886904,0.3766591,92090.0,92089.0,0.12185]
[1765390888705,0.3658,92090.0,92089.0,0.12185]
[1765390889610,0.3658,92090.0,92089.0,0.15501934]
[1765390891012,0.53628,92090.0,92089.0,0.15501934]
[1765390891212,0.57403,92090.0,92089.0,0.03316934]
[1765390891416,0.17048,92082.0,92081.0,0.20982]
[1765390891615,0.17048,92082.0,92081.0,0.24300876]
[1765390891616,0.1813401,92082.0,92081.0,0.24300876]
[1765390892309,0.17048,92082.0,92081.0,0.24300876]
[1765390892611,0.5451392,92090.0,92089.0,0.17391]
[1765390892816,0.5451392,92090.0,92089.0,0.20709876]
[1765390893212,0.5451392,92090.0,92089.0,0.11913876]
[1765390893518,0.5421392,92090.0,92089.0,0.20709876]
[1765390893713,0.04907922,92110.0,92089.0,0.20709876]
[1765390893714,0.40970551,92120.0,92101.0,0.1847678]
[1765390893914,0.04890551,92120.0,92119.0,0.17391]
[1765390894214,0.08883831,92149.0,92138.0,0.0108534]
[1765390894406,0.010851,92159.0,92147.0,0.05061]
[1765390894607,0.27043891,92160.0,92139.0,0.22074891]
[1765390894608,0.17048,92148.0,92139.0,0.22074891]
[1765390894803,0.0968124,92147.0,92146.0,0.08595]
[1765390895013,0.0968124,92147.0,92136.0,0.41141]
[1765390895014,0.17048,92140.0,92139.0,0.0108532]
[1765390895415,0.17048,92140.0,92139.0,0.1847632]
[1765390895612,0.17048,92140.0,92136.0,0.41141]
[1765390895813,0.17048,92135.0,92134.0,0.00016281]
[1765390896014,0.53128,92135.0,92134.0,0.00016281]
[1765390896611,0.17048,92135.0,92134.0,0.17407281]
[1765390896813,0.3608,92145.0,92140.0,0.1847632]
[1765390897008,0.53128,92145.0,92144.0,0.08595]
[1765390897418,0.17048,92140.0,92139.0,0.0108533]
[1765390897617,0.17048,92140.0,92134.0,0.00016281]
[1765390897618,0.17048,92135.0,92134.0,0.00016281]
[1765390897810,0.22074891,92144.0,92134.0,0.17407281]
[1765390898118,0.22074891,92144.0,92143.0,0.17391]
[1765390898119,0.0968127,92144.0,92143.0,0.17391]
[1765390898313,0.1813327,92144.0,92143.0,0.17391]
[1765390898513,0.3638,92145.0,92144.0,0.1847627]
[1765390899321,0.44676,92145.0,92144.0,0.17391]
[1765390899715,0.17048,92141.0,92140.0,0.1847632]
[1765390900511,0.0108527,92144.0,92143.0,0.17391]
[1765390900710,0.3638,92145.0,92144.0,0.17391]
[1765390900912,0.001,92145.0,92144.0,0.17391]
[1765390901411,0.08612281,92153.0,92152.0,0.08595]
[1765390901619,0.17048,92149.0,92148.0,0.08595]
[1765390902017,0.00016281,92153.0,92140.0,0.0108532]
[1765390902018,0.17048,92141.0,92140.0,0.08595]
[1765390902618,0.17048,92141.0,92136.0,0.41141]
[1765390902619,0.17048,92137.0,92136.0,0.44675]
[1765390902921,0.0968128,92144.0,92143.0,0.17391]
[1765390903225,0.1813328,92144.0,92143.0,0.17391]
[1765390903827,0.17048,92144.0,92143.0,0.17391]
[1765390904125,0.1813327,92144.0,92143.0,0.17391]
[1765390904723,0.1813327,92144.0,92143.0,0.08595]
[1765390904923,0.1823327,92144.0,92143.0,0.08595]
[1765390905624,0.1843327,92144.0,92143.0,0.08595]
[1765390907829,0.1813336,92137.0,92136.0,0.22452]
[1765390908029,0.17048,92137.0,92136.0,0.22452]
[1765390908834,0.1823336,92137.0,92136.0,0.22452]
[1765390909024,0.001,92137.0,92136.0,0.2363737]
[1765390909727,0.00016281,92153.0,92150.0,0.096802]
[1765390909728,0.181332,92151.0,92150.0,0.096802]
[1765390909919,0.181332,92151.0,92150.0,0.184762]
[1765390910317,0.181332,92151.0,92150.0,0.17391]
[1765390911431,0.002,92151.0,92150.0,0.22452]
[1765390911735,0.005,92151.0,92150.0,0.22452]
[1765390912436,0.00016281,92153.0,92152.0,0.17391]
[1765390913534,0.05030028,92169.0,92152.0,0.17391]
[1765390913535,0.0108504,92164.0,92163.0,0.17391]
[1765390913730,0.0108504,92164.0,92163.0,0.1847605]
[1765390913926,0.0968104,92164.0,92163.0,0.1847605]
[1765390914643,0.0978104,92164.0,92163.0,0.1847605]
[1765390914833,0.1823304,92164.0,92163.0,0.1847605]
[1765390915135,0.001,92164.0,92163.0,0.1847605]
[1765390915329,0.08696,92164.0,92163.0,0.1847605]
[1765390915524,0.08896,92164.0,92163.0,0.1847605]
[1765390915926,0.003,92164.0,92163.0,0.1847605]
[1765390916236,0.17348,92164.0,92163.0,0.1847605]
[1765390916731,0.17048,92161.0,92159.0,0.3608]
[1765390916930,0.17048,92161.0,92154.0,0.00016281]
[1765390916931,0.1813314,92155.0,92154.0,0.00016281]
[1765390917533,0.1813314,92155.0,92129.0,0.3608]
[1765390917534,0.08596,92133.0,92132.0,0.17391]
[1765390917837,0.17048,92143.0,92142.0,0.184763]
[1765390919938,0.1073127,92145.0,92144.0,0.20393]
[1765390920243,0.09646,92145.0,92144.0,0.20393]
[1765390920426,0.0108523,92148.0,92147.0,0.20393]
[1765390920631,0.1073119,92151.0,92150.0,0.05853]
[1765390920940,0.00016281,92152.0,92151.0,0.2147819]
[1765390921137,0.20191,92141.0,92140.0,0.5755832]
[1765390921343,0.20191,92141.0,92140.0,0.66784947]
[1765390922444,0.20191,92141.0,92133.0,0.00016281]
[1765390922445,0.20191,92134.0,92133.0,0.00016281]
[1765390922745,0.20191,92134.0,92133.0,0.03395826]
[1765390922746,0.2127639,92134.0,92133.0,0.03395826]
[1765390923947,0.2127639,92134.0,92133.0,0.23988826]
[1765390924242,0.3618,92141.0,92136.0,0.20393]
[1765390924243,0.0108536,92137.0,92136.0,0.20393]
[1765390924428,0.3618,92141.0,92140.0,0.2733132]
[1765390924629,0.001,92141.0,92140.0,0.2733132]
[1765390924831,0.09746,92141.0,92140.0,0.30699887]
[1765390925036,0.2127624,92147.0,92146.0,0.20393]
[1765390926145,0.20191,92144.0,92143.0,0.20393]
[1765390926742,0.20191,92144.0,92143.0,0.10148]
[1765390927135,0.20191,92144.0,92143.0,0.20393]
[1765390928648,0.20391,92144.0,92143.0,0.20393]
[1765390929843,0.002,92144.0,92143.0,0.20393]
[1765390930848,0.46346,92149.0,92148.0,0.19619]
[1765390931351,0.5585,92149.0,92148.0,0.19619]
[1765390931648,0.4743122,92149.0,92148.0,0.19619]
[1765390931843,0.5693522,92149.0,92148.0,0.19619]
[1765390933641,0.5713522,92149.0,92148.0,0.19619]
[1765390934050,0.002,92149.0,92148.0,0.55699]
[1765390934743,0.002,92149.0,92148.0,0.59068172]
[1765390935349,0.0108501,92167.0,92151.0,0.25459]
[1765390935655,0.0108501,92167.0,92151.0,0.28828172]
[1765390935854,0.0108513,92157.0,92151.0,0.28828172]
[1765390936351,0.0108516,92154.0,92151.0,0.28828172]
[1765390937041,0.0108516,92154.0,92151.0,0.28928172]
[1765390937239,0.19786281,92152.0,92151.0,0.03469172]
[1765390937456,0.55866281,92152.0,92151.0,0.001]
[1765390937654,0.55966281,92152.0,92151.0,0.001]
[1765390938050,0.66817976,92152.0,92151.0,0.001]
[1765390938251,0.2085531,92141.0,92133.0,0.00016281]
[1765390939548,0.2085531,92141.0,92140.0,0.00408531]
[1765390939855,0.2085531,92141.0,92140.0,0.00608531]
[1765390940055,0.2085539,92134.0,92133.0,0.00016281]
[1765390940259,0.2085563,92114.0,92113.0,0.19619]
[1765390940551,0.05689,92130.0,92114.0,0.19619]
[1765390940552,0.00108561,92115.0,92114.0,0.19619]
[1765390940754,0.00108561,92115.0,92114.0,0.22911462]
[1765390941153,0.10374561,92115.0,92114.0,0.22911462]
[1765390941556,0.19878561,92115.0,92114.0,0.22911462]
[1765390941854,0.19878561,92115.0,92114.0,0.19619]
[1765390942156,0.2085563,92114.0,92113.0,0.20119]
[1765390942357,0.0108563,92114.0,92113.0,0.20119]
[1765390942759,0.00108561,92115.0,92114.0,0.19619]
[1765390942958,0.00108561,92115.0,92114.0,0.19919]
[1765390943157,0.00108561,92115.0,92114.0,0.20319]
[1765390943553,0.00108561,92115.0,92114.0,0.19619]
[1765390944273,0.00108561,92115.0,92114.0,0.20019]
[1765390944463,0.00108561,92115.0,92114.0,0.20219]
[1765390944667,0.00108561,92115.0,92114.0,0.2130463]
[1765390944964,0.00108561,92115.0,92114.0,0.20219]
[1765390945549,0.19878561,92115.0,92114.0,0.20219]
[1765390946653,0.36347615,92115.0,92114.0,0.006]
[1765390946859,0.2386272,92106.0,92105.0,0.00013852]
[1765390947056,0.208558,92099.0,92098.0,0.3608]
[1765390947767,0.208558,92099.0,92098.0,0.45787]
[1765390948662,0.195699,92091.0,92090.0,0.60999]
[1765390949865,0.0108602,92081.0,92080.0,0.0584]
[1765390950167,0.08949,92092.0,92091.0,0.19079]
[1765390950366,0.1003485,92096.0,92095.0,0.19079]
[1765390950565,0.1003485,92096.0,92090.0,0.3608]
[1765390950566,0.3608,92099.0,92098.0,0.19079]
[1765390952067,0.00016281,92100.0,92099.0,0.201648]
[1765390953276,0.19886071,92100.0,92099.0,0.19079]
[1765390953867,0.19986071,92100.0,92099.0,0.19079]
[1765390956173,0.10451071,92100.0,92099.0,0.19079]
[1765390956573,0.01502071,92100.0,92099.0,0.19079]
[1765390956973,0.00416281,92100.0,92099.0,0.19079]
[1765390958186,0.86856,92119.0,92099.0,0.19079]
[1765390958187,0.0108561,92116.0,92114.0,0.2016463]
[1765390958474,0.0108554,92122.0,92114.0,0.2016463]
[1765390958670,0.0108554,92122.0,92114.0,0.59524888]
[1765390958870,0.09057561,92115.0,92114.0,0.58439258]
[1765390959175,0.09057561,92115.0,92114.0,0.55159]
[1765390959377,0.09857561,92115.0,92114.0,0.55259]
[1765390959677,0.00908561,92115.0,92114.0,0.55259]
[1765390959875,0.09857561,92115.0,92114.0,0.55259]
[1765390960575,0.09357561,92115.0,92114.0,0.55259]
[1765390960776,0.19192561,92115.0,92114.0,0.55259]
[1765390960980,0.09657561,92115.0,92114.0,0.55259]
[1765390961274,0.09657561,92115.0,92114.0,0.55159]
[1765390961275,0.09557561,92115.0,92114.0,0.55159]
[1765390961577,0.00608561,92115.0,92114.0,0.55159]
[1765390962171,0.00608561,92115.0,92114.0,0.58441517]
[1765390963076,0.00608561,92115.0,92114.0,0.22361517]
[1765390963271,0.00308561,92115.0,92114.0,0.22361517]
[1765390963580,0.00508561,92115.0,92114.0,0.22361517]
[1765390964169,0.09457561,92115.0,92114.0,0.22361517]
[1765390964369,0.00508561,92115.0,92114.0,0.22361517]
[1765390966476,0.18992561,92115.0,92114.0,0.22361517]
[1765390966786,0.18992561,92115.0,92106.0,0.0554]
[1765390966787,0.18484,92107.0,92106.0,0.24619]
[1765390966981,0.1956971,92107.0,92106.0,0.27906925]
[1765390968368,0.1966971,92107.0,92106.0,0.27906925]
[1765390969777,0.0118571,92107.0,92106.0,0.27906925]
[1765390970182,0.001,92107.0,92106.0,0.27906925]
[1765390970477,0.09049,92107.0,92106.0,0.27906925]
[1765390970884,0.18584,92107.0,92106.0,0.03287925]
[1765390972281,0.0108572,92106.0,92105.0,0.00016281]
[1765390972474,0.2475072,92106.0,92105.0,0.00016281]
[1765390973782,0.2475072,92106.0,92096.0,0.3608]
[1765390973783,0.18484,92089.0,92088.0,0.02914096]
[1765390974087,0.18484,92089.0,92087.0,0.3608]
[1765390974088,0.18484,92088.0,92087.0,0.55159]
[1765390974294,0.08949,92088.0,92087.0,0.55159]
[1765390974677,0.0108592,92089.0,92088.0,0.24619]
[1765390974878,0.1003492,92089.0,92088.0,0.24619]
[1765390975080,0.1003492,92089.0,92088.0,0.25219]
[1765390975081,0.1013492,92089.0,92088.0,0.25219]
[1765390975281,0.0118592,92089.0,92088.0,0.25219]
[1765390975576,0.0118592,92089.0,92088.0,0.24919]
[1765390975887,0.1966992,92089.0,92088.0,0.24919]
[1765390976075,0.1966992,92089.0,92088.0,0.2600493]
[1765390976076,0.001,92089.0,92088.0,0.2600493]
[1765390976273,0.00016281,92097.0,92096.0,0.2016484]
[1765390976481,0.00016281,92097.0,92096.0,0.5624484]
[1765390976878,0.10143181,92115.0,92114.0,0.2016463]
[1765390977076,0.01194181,92115.0,92114.0,0.19079]
[1765390977281,0.19678181,92115.0,92114.0,0.19079]
[1765390978591,0.20078181,92115.0,92114.0,0.19079]
[1765390979580,0.20378181,92115.0,92114.0,0.19079]
[1765390981094,0.00508561,92115.0,92114.0,0.19079]
[1765390981291,0.00808561,92115.0,92114.0,0.19079]
[1765390983187,0.00808561,92115.0,92114.0,0.19179]
[1765390983493,0.00608561,92115.0,92114.0,0.19179]
[1765390983890,0.00308561,92115.0,92114.0,0.19079]
[1765390984189,0.00408561,92115.0,92114.0,0.2233999]
[1765390986389,0.00408561,92115.0,92114.0,0.22382507]
[1765390986594,0.00208561,92115.0,92114.0,0.22382507]
[1765390986796,0.00408561,92115.0,92114.0,0.22382507]
[1765390987385,0.00308561,92115.0,92114.0,0.22382507]
[1765390990996,0.00208561,92115.0,92114.0,0.22382507]
[1765390991182,0.00308561,92115.0,92114.0,0.22382507]
[1765390993292,0.00016281,92124.0,92121.0,0.0108552]
[1765390993293,0.0108552,92123.0,92121.0,0.0108552]
[1765390993494,0.00016281,92124.0,92123.0,0.1729152]
[1765390993698,0.00016281,92124.0,92123.0,0.20594077]
[1765390993893,0.010853,92142.0,92128.0,0.2215946]
[1765390993894,0.0108546,92129.0,92128.0,0.2215946]
[1765390994390,0.3608,92144.0,92135.0,0.1729138]
[1765390994391,0.3716538,92136.0,92135.0,0.1729138]
[1765390995098,0.0108538,92136.0,92135.0,0.1729138]
[1765390995897,0.0108529,92143.0,92142.0,0.0108529]
[1765390996197,0.0108529,92143.0,92142.0,0.16206]
[1765390996500,0.0951029,92143.0,92142.0,0.16206]
[1765390996701,0.0108529,92143.0,92142.0,0.16206]
[1765390996891,0.0951029,92143.0,92142.0,0.16206]
[1765390997092,0.0971029,92143.0,92142.0,0.16206]
[1765390997291,0.1761829,92143.0,92142.0,0.16206]
[1765390997685,0.1781829,92143.0,92142.0,0.16206]
[1765391004293,0.1781829,92143.0,92142.0,0.19854487]
[1765391004994,0.1781829,92143.0,92142.0,0.16206]
[1765391006196,0.1781829,92143.0,92142.0,0.19853687]
[1765391009594,0.1712429,92143.0,92142.0,0.19853687]
[1765391010202,0.1712429,92143.0,92142.0,0.12116687]
[1765391010408,0.15639,92142.0,92141.0,0.43434]
[1765391010807,0.15639,92142.0,92141.0,0.3608]
[1765391011109,0.15639,92142.0,92126.0,0.00016281]
[1765391011110,0.1672447,92127.0,92126.0,0.00016281]
[1765391011404,0.1672447,92127.0,92126.0,0.14831281]
[1765391012303,0.1672447,92127.0,92126.0,0.00016281]
[1765391012604,0.1672447,92127.0,92126.0,0.00116281]
[1765391013007,0.1672447,92127.0,92126.0,0.14931281]
[1765391013209,0.1672447,92127.0,92126.0,0.15031281]
[1765391015004,0.1672447,92127.0,92126.0,0.18597473]
[1765391016803,0.1672447,92127.0,92107.0,0.0581433]
[1765391016804,0.15639,92113.0,92112.0,0.02922985]
[1765391017012,0.15639,92107.0,92106.0,0.02922985]
[1765391017199,0.0577465,92112.0,92099.0,0.10276985]
[1765391017200,0.15639,92100.0,92099.0,0.10276985]
[1765391017406,0.15639,92100.0,92099.0,0.14815]
[1765391018013,0.51719,92100.0,92099.0,0.14815]
[1765391018214,0.1672488,92093.0,92092.0,0.14815]
[1765391018608,0.167249,92091.0,92090.0,0.17862856]
[1765391018914,0.167249,92091.0,92090.0,0.14939871]
[1765391019109,0.15639,92091.0,92090.0,0.14939871]
[1765391019327,0.3608,92113.0,92108.0,0.14815]
[1765391019508,0.0108557,92119.0,92108.0,0.14815]
[1765391019704,0.3716559,92118.0,92108.0,0.14815]
[1765391019905,0.3608,92129.0,92108.0,0.14815]
[1765391021220,0.0108561,92116.0,92108.0,0.14815]
[1765391021421,0.00116281,92109.0,92108.0,0.14815]
[1765391021919,0.0896243,92131.0,92130.0,0.1590041]
[1765391023523,0.0916243,92131.0,92130.0,0.1590041]
[1765391024121,0.0936243,92131.0,92130.0,0.1590041]
[1765391025412,0.0148543,92131.0,92130.0,0.1590041]
[1765391025616,0.004,92131.0,92130.0,0.1590041]
[1765391026623,0.002,92131.0,92130.0,0.1590041]
[1765391026924,0.004,92131.0,92130.0,0.1590041]
[1765391027527,0.003,92131.0,92130.0,0.1590041]
[1765391028921,0.003,92131.0,92130.0,0.19652152]
[1765391029425,0.002,92131.0,92130.0,0.19652152]
[1765391029626,0.0108539,92135.0,92130.0,0.19652152]
[1765391029627,0.1672435,92138.0,92137.0,0.0108533]
[1765391029924,0.1672435,92138.0,92137.0,0.1590033]
[1765391030821,0.1692435,92138.0,92137.0,0.1590033]
[1765391031324,0.1722435,92138.0,92137.0,0.1590033]
[1765391031523,0.0946235,92138.0,92137.0,0.1590033]
[1765391031723,0.1722435,92138.0,92137.0,0.1590033]
[1765391033319,0.1702435,92138.0,92137.0,0.1590033]
[1765391033527,0.1722435,92138.0,92137.0,0.1590033]
[1765391033925,0.1712435,92138.0,92137.0,0.1590033]
[1765391035121,0.1712435,92138.0,92137.0,0.19650485]
[1765391038224,0.16039,92138.0,92137.0,0.19650485]
[1765391039731,0.08277,92138.0,92137.0,0.19650485]
[1765391040227,0.004,92138.0,92137.0,0.19650485]
[1765391040428,0.01101601,92140.0,92137.0,0.19650485]
[1765391040429,0.00016281,92140.0,92139.0,0.1851733]
[1765391040728,0.18532,92155.0,92154.0,0.1851716]
[1765391041332,0.18532,92159.0,92158.0,0.1851711]
[1765391041534,0.18532,92159.0,92158.0,0.2116126]
[1765391041723,0.18532,92159.0,92158.0,0.17432]
[1765391043033,0.18732,92159.0,92158.0,0.17432]
[1765391043225,0.18732,92159.0,92158.0,0.1851711]
[1765391043532,0.18932,92159.0,92158.0,0.1851711]
[1765391043827,0.18932,92159.0,92158.0,0.22242679]
[1765391044034,0.18732,92159.0,92158.0,0.22242679]
[1765391044232,0.18932,92159.0,92158.0,0.22405528]
[1765391044728,0.004,92159.0,92158.0,0.22405528]
[1765391044931,0.002,92159.0,92158.0,0.22405528]
[1765391045123,0.1016306,92163.0,92162.0,0.2380306]
[1765391045323,0.1961706,92163.0,92162.0,0.2380306]
[1765391046937,0.1961706,92163.0,92162.0,0.17432]
[1765391047327,0.1981706,92163.0,92162.0,0.17432]
[1765391047737,0.2001706,92163.0,92162.0,0.17432]
[1765391049340,0.18932,92163.0,92162.0,0.22719]
[1765391049532,0.18932,92163.0,92162.0,0.26611199]
[1765391050534,0.18932,92163.0,92162.0,0.22719]
[1765391050835,0.18932,92163.0,92162.0,0.17432]
[1765391053144,0.18932,92163.0,92162.0,0.22719]
[1765391053446,0.18932,92163.0,92162.0,0.17432]
[1765391053630,0.17287,92156.0,92155.0,0.23186]
[1765391053833,0.17287,92156.0,92155.0,0.27079885]
[1765391054933,0.17287,92156.0,92155.0,0.21793885]
[1765391055443,0.17287,92156.0,92155.0,0.22879025]
[1765391056149,0.0108512,92157.0,92156.0,0.179]
[1765391056327,0.04906031,92166.0,92165.0,0.179]
[1765391056532,0.13775031,92166.0,92165.0,0.22878915]
[1765391056740,0.14860051,92166.0,92165.0,0.22878915]
[1765391057445,0.05106031,92166.0,92165.0,0.22878915]
[1765391057648,0.22393031,92166.0,92165.0,0.22878915]
[1765391057945,0.58273031,92166.0,92165.0,0.21793885]
[1765391058130,0.58473031,92166.0,92165.0,0.21793885]
[1765391058536,0.58273031,92166.0,92165.0,0.21793885]
[1765391058734,0.58473031,92166.0,92165.0,0.03893885]
[1765391059233,0.58473031,92166.0,92165.0,0.13006885]
[1765391059753,0.58573031,92166.0,92165.0,0.13006885]
[1765391060044,0.58573031,92166.0,92165.0,0.03893885]
[1765391060441,0.0108513,92156.0,92153.0,0.0292064]
[1765391060651,0.183722,92150.0,92144.0,0.0292064]
[1765391060945,0.183722,92150.0,92139.0,0.0292064]
[1765391061148,0.183722,92150.0,92140.0,0.0108532]
[1765391061346,0.183722,92150.0,92138.0,0.0292064]
[1765391061546,0.183722,92150.0,92139.0,0.0108533]
[1765391061745,0.183722,92150.0,92138.0,0.0292064]
[1765391061746,0.183722,92150.0,92149.0,0.00216281]
[1765391062135,0.1837233,92139.0,92138.0,0.09113]
[1765391062441,0.1837233,92139.0,92138.0,0.2082064]
[1765391063441,0.1837233,92139.0,92138.0,0.2102064]
[1765391063950,0.1837233,92139.0,92138.0,0.2122064]
[1765391064952,0.1837233,92139.0,92138.0,0.183]
[1765391068253,0.1837233,92139.0,92138.0,0.09513]
[1765391068459,0.1837233,92139.0,92138.0,0.17823]
[1765391072452,0.1837233,92139.0,92138.0,0.21732998]
[1765391077964,0.1837233,92139.0,92138.0,0.04309998]
[1765391078864,0.1837233,92139.0,92138.0,0.21155998]
[1765391080664,0.1837233,92139.0,92138.0,0.04309998]
[1765391081255,0.2237944,92130.0,92129.0,0.00016281]
[1765391081461,1.0905144,92130.0,92129.0,0.00016281]
[1765391081658,1.0424644,92130.0,92129.0,0.16862281]
[1765391081862,1.0424644,92130.0,92129.0,0.08552281]
[1765391082369,1.0434644,92130.0,92129.0,0.00416281]
[1765391082569,0.52669,92130.0,92129.0,0.17262281]
[1765391082761,1.03261,92130.0,92129.0,0.17562281]
[1765391083073,0.3618,92130.0,92129.0,0.20486326]
[1765391083270,0.3618,92130.0,92129.0,0.17562281]
[1765391084171,0.52669,92130.0,92129.0,0.17562281]
[1765391087668,0.52669,92130.0,92129.0,0.00716281]
[1765391088873,0.5375444,92130.0,92129.0,0.00716281]
[1765391089167,0.5375444,92130.0,92129.0,0.17562281]
[1765391089368,0.5375444,92130.0,92129.0,0.00716281]
[1765391090473,0.5375444,92130.0,92129.0,0.18647731]
[1765391093275,0.5375444,92130.0,92129.0,0.05595575]
[1765391093462,0.5375444,92130.0,92129.0,0.22441575]
[1765391093968,1.0435044,92130.0,92129.0,0.22441575]
[1765391095571,0.52669,92130.0,92129.0,0.22441575]
[1765391096471,0.3618,92130.0,92129.0,0.22441575]
[1765391096667,0.52669,92130.0,92129.0,0.22441575]
[1765391099373,0.3618,92130.0,92129.0,0.22441575]
[1765391099570,0.51741,92130.0,92129.0,0.22441575]
[1765391099775,0.51741,92130.0,92129.0,0.04510125]
[1765391100067,0.51741,92130.0,92129.0,0.12447125]
[1765391100267,0.51741,92130.0,92129.0,0.20255125]
[1765391100665,0.43883,92130.0,92129.0,0.20255125]
[1765391100866,0.51741,92130.0,92129.0,0.20255125]
[1765391101269,0.51741,92130.0,92129.0,0.04510125]
[1765391101687,0.51741,92130.0,92129.0,0.20255125]
[1765391102074,0.51741,92130.0,92129.0,0.12447125]
[1765391102282,0.51741,92130.0,92129.0,0.04510125]
[1765391103982,0.51741,92130.0,92129.0,0.20255125]
[1765391104483,0.51741,92130.0,92129.0,0.12447125]
[1765391104685,0.51741,92130.0,92129.0,0.04510125]
[1765391105083,0.51741,92130.0,92129.0,0.20255125]
[1765391106278,0.86776,92130.0,92129.0,0.20255125]
[1765391106582,0.43883,92130.0,92129.0,0.20255125]
[1765391106883,0.001,92130.0,92129.0,0.24147059]
[1765391107181,0.001,92130.0,92129.0,0.26069455]
[1765391107576,0.001,92130.0,92129.0,0.20255125]
[1765391108883,0.07803,92130.0,92129.0,0.20255125]
[1765391109090,0.15661,92130.0,92129.0,0.20255125]
[1765391109288,0.15661,92130.0,92129.0,0.24159014]
[1765391109991,0.15661,92130.0,92129.0,0.04510125]
[1765391112201,0.26515286,92130.0,92124.0,0.02928283]
[1765391112379,0.15561,92105.0,92104.0,9.835e-05]
[1765391112686,0.1664688,92093.0,92092.0,0.01162]
[1765391113283,0.5272688,92093.0,92092.0,0.01162]
[1765391114392,0.5282688,92093.0,92092.0,0.01162]
[1765391114779,0.51741,92093.0,92092.0,0.01162]
[1765391114986,0.07803,92093.0,92092.0,0.15942]
[1765391115194,0.07803,92093.0,92092.0,0.16042]
[1765391115488,0.15064,92093.0,92092.0,0.16042]
[1765391116997,0.001,92093.0,92092.0,0.16042]
[1765391118892,0.07282,92093.0,92092.0,0.16042]
[1765391119096,0.001,92093.0,92092.0,0.16042]
[1765391121400,0.00016281,92102.0,92101.0,0.1586578]
[1765391122494,0.00116281,92102.0,92101.0,0.1586578]
[1765391122900,0.07298281,92102.0,92101.0,0.1586578]
[1765391123084,0.00116281,92102.0,92101.0,0.1586578]
[1765391123899,0.00416281,92102.0,92101.0,0.1586578]
[1765391124798,0.07598281,92102.0,92101.0,0.1586578]
[1765391124997,0.07598281,92102.0,92101.0,0.19422235]
[1765391125299,0.00416281,92102.0,92101.0,0.19422235]
[1765391130093,0.3608,92123.0,92122.0,0.14483]
[1765391130292,0.51081,92123.0,92122.0,0.14483]
[1765391130498,0.07324,92123.0,92122.0,0.14483]
[1765391130698,0.3608,92134.0,92133.0,0.155684]
[1765391130699,0.51081,92134.0,92133.0,0.155684]
[1765391131002,0.3608,92134.0,92133.0,0.155684]
[1765391131201,0.3608,92134.0,92133.0,0.19125316]
[1765391131503,0.00016281,92143.0,92142.0,0.155683]
[1765391132401,0.15017281,92143.0,92142.0,0.155683]
[1765391132592,0.16102571,92143.0,92142.0,0.155683]
[1765391133503,0.16302571,92143.0,92142.0,0.155683]
[1765391133899,0.16602571,92143.0,92142.0,0.155683]
[1765391134302,0.15517281,92143.0,92142.0,0.155683]
[1765391137003,0.3608,92154.0,92142.0,0.155683]
[1765391137004,0.5216605,92163.0,92162.0,0.14483]
[1765391137203,0.1608605,92163.0,92162.0,0.14483]
[1765391137909,0.15001,92153.0,92152.0,0.1979818]
[1765391138102,0.15001,92153.0,92145.0,0.0855126]
[1765391138103,0.0108526,92146.0,92145.0,0.0855126]
[1765391138303,0.1608626,92146.0,92145.0,0.07466]
[1765391140010,0.1608626,92146.0,92144.0,0.0423]
[1765391140011,0.0108526,92146.0,92144.0,0.0423]
[1765391140309,0.3628,92153.0,92152.0,0.1979818]
[1765391140801,0.58212925,92180.0,92165.0,0.1556803]
[1765391141109,0.010849,92177.0,92165.0,0.5164803]
[1765391141308,0.58212925,92180.0,92165.0,0.5164803]
[1765391141309,0.01101231,92172.0,92165.0,0.5164803]
[1765391142008,0.0108499,92169.0,92165.0,0.5164803]
[1765391142306,0.01101231,92172.0,92165.0,0.5164803]
[1765391142805,0.00016281,92172.0,92165.0,0.5164803]
[1765391144106,0.19907031,92166.0,92165.0,0.14483]
[1765391144311,0.19907031,92166.0,92160.0,0.18713]
[1765391144312,0.1608607,92161.0,92160.0,0.18713]
[1765391144508,0.1608617,92153.0,92152.0,0.18713]
[1765391145002,0.15001,92153.0,92152.0,0.18713]
[1765391145200,0.3608,92161.0,92160.0,0.1979809]
[1765391145402,0.04906031,92166.0,92165.0,0.14483]
[1765391145707,0.15001,92166.0,92165.0,0.14483]
[1765391145908,0.1608607,92161.0,92160.0,0.11796]
[1765391146103,0.1608607,92161.0,92160.0,0.18813]
[1765391146708,0.0108516,92154.0,92153.0,0.0108517]
[1765391146921,0.1608616,92154.0,92153.0,0.0855117]
[1765391147215,0.5216605,92163.0,92162.0,0.14483]
[1765391147606,0.15001,92161.0,92160.0,0.0453]
[1765391147906,0.15001,92161.0,92160.0,0.0443]
[1765391148204,0.15001,92161.0,92160.0,0.002]
[1765391148409,0.1608616,92154.0,92153.0,0.0885116]
[1765391148609,0.1608616,92154.0,92153.0,0.0855116]
[1765391148799,0.1608616,92154.0,92153.0,0.1556816]
[1765391149003,0.15001,92154.0,92153.0,0.1556816]
[1765391149803,0.51081,92163.0,92162.0,0.14483]
[1765391150604,0.5216605,92163.0,92162.0,0.14483]
[1765391150800,0.3608,92163.0,92162.0,0.14483]
[1765391151316,0.3608,92163.0,92162.0,0.14583]
[1765391151613,0.3608,92163.0,92162.0,0.14683]
[1765391151804,0.15001,92171.0,92170.0,0.1556797]
[1765391153008,0.15101,92171.0,92170.0,0.1556797]
[1765391153406,0.15201,92171.0,92170.0,0.1556797]
[1765391153600,0.15201,92171.0,92170.0,0.0855097]
[1765391153910,0.15201,92171.0,92170.0,0.1556797]
[1765391160401,0.002,92171.0,92170.0,0.1556797]
[1765391160806,0.002,92171.0,92170.0,0.19062291]
[1765391161412,0.1445,92188.0,92187.0,0.1463277]
[1765391162207,0.1445,92188.0,92187.0,0.13548]